Cogmind - Beta 14 @@@ ROGUE MODE // 2024.08.26 @ 22:03:02 Player: Olafz Result: Destroyed by G-67 Veteran with Field Laser Performance ------------- Evolutions (6) 3000 Regions Visited (9) 1800 Robots Destroyed (7) 35 Value Destroyed (215) 215 Prototype IDs (1) 20 Alien Tech Used (0) 0 Bonus (300) 300 TOTAL SCORE: 5370 Bonus ------- Registered with UFD 300 Cogmind --------- Core Integrity 0/1150 Matter 121/300 Energy 98/100 System Corruption 0% Temperature Cool (21) Movement Core (50) Location -4/Factory Parts ------- > --- POWER (1) -------- (None) > --- PROPULSION (2) --- (None) > --- UTILITY (14) ----- (None) > --- WEAPON (2) ------- (None) > --- INVENTORY (5) ---- Deep Structural Scanner Advanced Sensor Array Improved Signal Interpreter Hacking Suite Peak State ------------ > --- POWER ------------ (None) > --- PROPULSION ------- (None) > --- UTILITY ---------- Advanced Sensor Array Advanced Terrain Scanner Surveybot 17 Chip Melee Analysis Suite Hacking Suite Hacking Suite System Shield > --- WEAPON ----------- Falx > --- INVENTORY -------- Deep Structural Scanner Hacking Suite Heavy Pick [Rating: 35] Favorites ----------- Power Light Deuterium Engine Engine Light Deuterium Engine Propulsion None Utility Melee Analysis Suite Device Weight Redist. System Storage Small Storage Unit Processor Melee Analysis Suite Hackware Hacking Suite Weapon Falx Ballistic Gun Railgun Slashing Weapon Falx Piercing Weapon Heavy Pick Build | -11 -10 -9 -8 -8 -8 -8 -6 -5 -4 ------- Run | Yrd Mat Mat Mat Sto Rec Scr Fac Fac Fac Slots Evolved 12 | . . 2 2 . . . 4 2 2 Power . | . . . . . . . . . . Propulsion . | . . . . . . . . . . Utility 12 | . . 2 2 . . . 4 2 2 Weapon . | . . . . . . . . . . Parts Attached 30 | . . 4 . . . 9 4 5 8 Power 1 | . . . . . . 1 . . . Engine 1 | . . . . . . 1 . . . Core . | . . . . . . . . . . Reactor . | . . . . . . . . . . Propulsion . | . . . . . . . . . . Treads . | . . . . . . . . . . Leg . | . . . . . . . . . . Wheel . | . . . . . . . . . . Hover . | . . . . . . . . . . Flight . | . . . . . . . . . . Utility 18 | . . 4 . . . 7 2 4 1 Device 8 | . . . . . . 3 1 3 1 Storage 1 | . . . . . . 1 . . . Processor 5 | . . 3 . . . 2 . . . Hackware 4 | . . 1 . . . 1 1 1 . Protection . | . . . . . . . . . . Artifact . | . . . . . . . . . . Weapon 11 | . . . . . . 1 2 1 7 Energy Gun . | . . . . . . . . . . Energy Cannon . | . . . . . . . . . . Ballistic Gun 4 | . . . . . . . . . 4 Ballistic Cannon . | . . . . . . . . . . Launcher . | . . . . . . . . . . Special Weapon . | . . . . . . . . . . Impact Weapon . | . . . . . . . . . . Slashing Weapon 4 | . . . . . . 1 2 1 . Piercing Weapon 3 | . . . . . . . . . 3 Special Melee Weapon . | . . . . . . . . . . Unidentified Prototypes . | . . . . . . . . . . Parts Lost 18 | . . 1 . 2 . . 2 2 11 Power 1 | . . . . . . . 1 . . Propulsion . | . . . . . . . . . . Utility 11 | . . 1 . 2 . . 1 1 6 Weapon 6 | . . . . . . . . 1 5 Highest Loss Streak 10 | . . 1 . 2 . . 1 1 10 To Critical Strikes . | . . . . . . . . . . Average Slot Usage (%) 40 | . . 24 . 19 9 51 44 34 18 Engine 2 | . . . . . . 3 3 . . Device 12 | . . . . . . 18 16 6 1 Storage 4 | . . . . . . 7 . . . Processor 14 | . . 22 . 19 9 17 13 11 5 Hackware 3 | . . 2 . . . . 8 13 8 Slashing Weapon 2 | . . . . . . 4 2 . . Peak Build Rating 35 | . . 12 9 9 3 27 31 35 34 Average Rating 17 | . . 7 9 5 3 16 27 26 16 On Entrance 10 | . . . 9 9 3 3 27 23 30 Naked Turns 82 | . 59 12 . . . . . . 11 Heaviest Build 12 | . . . . . . 12 11 6 6 Greatest Support 9 | 3 3 3 3 3 3 9 9 3 3 Greatest Overweight (x) 3 | . . . . . . 3 1 1 1 Average Overweight (x) . | . . . . . . . . . . Largest Inventory Capacity 8 | 5 5 5 5 5 5 8 5 5 5 Average Capacity 6 | 5 5 5 5 5 5 7 5 5 5 Most Carried 7 | . . 3 3 3 3 7 5 5 4 Average Carried 4 | . . 2 3 3 3 5 4 4 3 Final Capacity 5 | 5 5 5 5 5 5 5 5 5 5 Final Carried 5 | . . 3 3 3 3 5 5 3 4 Class Distribution -------------------- 76% | Mutant 14% | Hacker-Mutant 4% | Assassin 3% | Scout Dominant Class ---------------- Mutant | -10/Materials Mutant | -9/Materials Mutant | -8/Materials Mutant | -8/Storage Mutant | -8/Recycling Mutant | -8/Scraptown Assassin | -6/Factory Hacker-Mutant | -5/Factory Mutant | -4/Factory Resources | -11 -10 -9 -8 -8 -8 -8 -6 -5 -4 ----------- Run | Yrd Mat Mat Mat Sto Rec Scr Fac Fac Fac Matter Collected 298 | 79 . . . . 99 106 14 . . Remotely . | . . . . . . . . . . Salvage Created 374 | . 20 . . . . . 167 . 187 Parts 20 | . 2 . . . . . 10 . 8 Haulers Intercepted 1 | . . . . . . . 1 . . Recyclers Shooed 1 | . . . . . . . 1 . . Parts Field Recycled . | . . . . . . . . . . Retrieved Matter . | . . . . . . . . . . Parts Self-Destructed . | . . . . . . . . . . Prevented . | . . . . . . . . . . Kills | -11 -10 -9 -8 -8 -8 -8 -6 -5 -4 ------- Run | Yrd Mat Mat Mat Sto Rec Scr Fac Fac Fac Combat Hostiles Destroyed 4 | . 1 . . . . . . . 3 Melee 1 | . 1 . . . . . . . . Guns 3 | . . . . . . . . . 3 Classes Destroyed 5 | . 1 . . . . . 2 . 2 Worker 2 | . . . . . . . 2 . . Hauler 1 | . . . . . . . 1 . . Swarmer 2 | . 1 . . . . . . . 1 Sentry 1 | . . . . . . . . . 1 Hunter 1 | . . . . . . . . . 1 Best Kill Streak 3 | . 1 . . . . . 3 . 3 Combat Bots Only 3 | . 1 . . . . . . . 3 Max Kills in Single Turn 1 | . 1 . . . . . 1 . 1 Gunslinging . | . . . . . . . . . . Exploded . | . . . . . . . . . . Melee 1 | . 1 . . . . . . . . Uniques/NPCs Destroyed . | . . . . . . . . . . Combat | -11 -10 -9 -8 -8 -8 -8 -6 -5 -4 -------- Run | Yrd Mat Mat Mat Sto Rec Scr Fac Fac Fac Hostile Shots Fired 342 | . 21 7 . 49 . . 84 4 177 Missed 132 | . 9 3 . 19 . . 42 2 57 Damage Taken 3313 | . 113 37 . 498 . . 580 39 2046 Core 2254 | . 113 37 . 462 . . 483 . 1159 Absorbed by Shields . | . . . . . . . . . . Core Remaining (%) 67 | 100 54 90 . . . 16 43 100 . Volleys Fired 12 | . . . . . . . . . 12 Largest 2 | . . . . . . . . . 2 Hottest 70 | . . . . . . . . . 70 Shots Fired 22 | . . . . . . . . . 22 Gun 22 | . . . . . . . . . 22 Cannon . | . . . . . . . . . . Launcher . | . . . . . . . . . . Special . | . . . . . . . . . . Kinetic 22 | . . . . . . . . . 22 Thermal . | . . . . . . . . . . Explosive . | . . . . . . . . . . Electromagnetic . | . . . . . . . . . . Robot Hit Streak 8 | . . . . . . . . . 8 Robot Miss Streak 2 | . . . . . . . . . 2 Penetration Max . | . . . . . . . . . . Secondary Targets . | . . . . . . . . . . Shots Hit Robots 21 | . . . . . . . 4 . 17 Core Hits 16 | . 2 . . 1 . . 3 . 10 Critical Kills . | . . . . . . . . . . Critical Parts Destroyed . | . . . . . . . . . . Critical Strikes . | . . . . . . . . . . Melee Attacks 13 | . . . . . . . 9 2 2 Impact . | . . . . . . . . . . Slashing 11 | . . . . . . . 9 2 . Piercing 2 | . . . . . . . . . 2 Sneak Attacks 3 | . . . . . . . 3 . . Combat Hostiles . | . . . . . . . . . . Follow-up Attacks . | . . . . . . . . . . Damage Inflicted 1004 | . 10 . . 3 . . 292 . 699 Guns 373 | . . . . . . . . . 373 Cannons . | . . . . . . . . . . Explosions 276 | . . . . . . . . . 276 Melee 292 | . . . . . . . 292 . . Ramming 63 | . 10 . . 3 . . . . 50 Kinetic 373 | . . . . . . . . . 373 Thermal . | . . . . . . . . . . Explosive 276 | . . . . . . . . . 276 Electromagnetic . | . . . . . . . . . . Impact . | . . . . . . . . . . Slashing 292 | . . . . . . . 292 . . Piercing . | . . . . . . . . . . Highest Corruption 2 | . . 1 . 2 2 . . . . Average Corruption 1 | . . 1 . 2 2 . . . . Corruption Purged . | . . . . . . . . . . Corruption Blocked . | . . . . . . . . . . Effects 1 | . . . . . 1 . . . . Alerts 1 | . . . . . 1 . . . . Overload Shots . | . . . . . . . . . . Overflow Damage 61 | . . . . . . . 16 . 45 Projectiles . | . . . . . . . . . . Explosions 45 | . . . . . . . . . 45 Melee 16 | . . . . . . . 16 . . Knockbacks 1 | . . . . . . . . . 1 Impact 1 | . . . . . . . . . 1 Kinetic . | . . . . . . . . . . Secondary . | . . . . . . . . . . Self-Inflicted Damage 29 | . 5 . . 1 . . . . 23 Shots . | . . . . . . . . . . Rammed 16 | . 3 . . 2 . . . . 11 Targets Rammed 16 | . 3 . . 2 . . . . 11 Kicked . | . . . . . . . . . . Crushed . | . . . . . . . . . . Highest Temperature 7 | . . . . 5 . . . . 7 Average Temperature 6 | . . . . 5 . . . . 7 Received Heat Transfer 603 | . 18 12 . 243 . . 144 9 177 Siege Activations . | . . . . . . . . . . Robots Corrupted . | . . . . . . . . . . Combat Hostiles . | . . . . . . . . . . Parts Fried . | . . . . . . . . . . Impact Corruptions . | . . . . . . . . . . Robots Melted . | . . . . . . . . . . Combat Hostiles . | . . . . . . . . . . Parts Melted . | . . . . . . . . . . Heat Transferred . | . . . . . . . . . . Parts Sabotaged . | . . . . . . . . . . Parts Stolen . | . . . . . . . . . . Parts Stripped . | . . . . . . . . . . Power Chain Reactions . | . . . . . . . . . . Alert | -11 -10 -9 -8 -8 -8 -8 -6 -5 -4 ------- Run | Yrd Mat Mat Mat Sto Rec Scr Fac Fac Fac Peak Influence 366 | . 53 31 13 60 23 . 135 75 366 Initial 65 | . . 22 13 5 23 . . 65 31 Average 74 | . 20 21 13 30 23 . 57 56 168 Maximum Alert Level 1 | . . . . . . . . . 1 Low Security (%) 90 | 100 100 100 100 100 100 . 100 100 62 Level 1 9 | . . . . . . . . . 37 Level 2 . | . . . . . . . . . . Level 3 . | . . . . . . . . . . Level 4 . | . . . . . . . . . . Level 5 . | . . . . . . . . . . High Security . | . . . . . . . . . . Max Security . | . . . . . . . . . . Squads Dispatched 5 | . 1 2 . 1 . . 1 . . Investigation 1 | . . 1 . . . . . . . Extermination . | . . . . . . . . . . Reinforcement 4 | . 1 1 . 1 . . 1 . . Assault . | . . . . . . . . . . Garrison . | . . . . . . . . . . Intercept . | . . . . . . . . . . Searches Triggered . | . . . . . . . . . . Construction Impeded . | . . . . . . . . . . Haulers Reinforced . | . . . . . . . . . . Active Scanning Responses . | . . . . . . . . . . Cargo Convoy Interrupts . | . . . . . . . . . . Stealth | -11 -10 -9 -8 -8 -8 -8 -6 -5 -4 --------- Run | Yrd Mat Mat Mat Sto Rec Scr Fac Fac Fac Distress Signals 5 | . 2 . . . . . . 2 1 Communications Jammed . | . . . . . . . . . . Distress Signals . | . . . . . . . . . . Times Spotted 65 | . 6 6 . 14 . . 13 4 22 Peak Tracking Total 19 | . 7 2 . 19 . . 9 4 8 Tactical Retreats 8 | . . 1 . . . . 2 . 5 Traps | -11 -10 -9 -8 -8 -8 -8 -6 -5 -4 ------- Run | Yrd Mat Mat Mat Sto Rec Scr Fac Fac Fac Traps Triggered 3 | . . 1 . 2 . . . . . Indirectly . | . . . . . . . . . . Trap Hack Attempts . | . . . . . . . . . . Triggered . | . . . . . . . . . . Disarmed . | . . . . . . . . . . Reprogrammed . | . . . . . . . . . . Reused . | . . . . . . . . . . Traps Extracted . | . . . . . . . . . . Installed . | . . . . . . . . . . Triggered . | . . . . . . . . . . Machines | -11 -10 -9 -8 -8 -8 -8 -6 -5 -4 ---------- Run | Yrd Mat Mat Mat Sto Rec Scr Fac Fac Fac Machines Disabled 2 | . . . . . . . . . 2 Max in Single Turn 2 | . . . . . . . . . 2 Machines Repaired . | . . . . . . . . . . Machines Dismantled . | . . . . . . . . . . Machines Sabotaged . | . . . . . . . . . . Overloaded Fab Kills . | . . . . . . . . . . Hacking | -11 -10 -9 -8 -8 -8 -8 -6 -5 -4 --------- Run | Yrd Mat Mat Mat Sto Rec Scr Fac Fac Fac Machines Accessed 12 | . 4 4 . . . 1 . 2 1 Terminals 11 | . 4 4 . . . . . 2 1 Fabricators . | . . . . . . . . . . Repair Stations . | . . . . . . . . . . Recycling Units . | . . . . . . . . . . Scanalyzers . | . . . . . . . . . . Garrison Access . | . . . . . . . . . . Total Hacks 46 | . 10 11 . . . 18 . 5 2 Successful 30 | . 4 4 . . . 18 . 2 2 Failed 16 | . 6 7 . . . . . 3 . Catastrophic 7 | . 1 4 . . . . . 2 . Database Lockouts . | . . . . . . . . . . Manual 29 | . 10 11 . 1 . . . 5 2 Terminals 28 | . 10 11 . . . . . 5 2 Fabricators . | . . . . . . . . . . Repair Stations . | . . . . . . . . . . Recycling Units . | . . . . . . . . . . Scanalyzers . | . . . . . . . . . . Garrison Access . | . . . . . . . . . . Terminal Hacks 20 | . 1 . . . . 18 . . 1 Record 18 | . . . . . . 18 . . . Level Access Points 2 | . 1 . . . . . . . 1 Fabricator Hacks . | . . . . . . . . . . Repair Station Hacks . | . . . . . . . . . . Recycling Unit Hacks . | . . . . . . . . . . Scanalyzer . | . . . . . . . . . . Garrison Access Hacks . | . . . . . . . . . . Unauthorized Hacks 10 | . 3 4 . . . . . 2 1 Terminals 10 | . 3 4 . . . . . 2 1 Botnet 10 | . 3 4 . . . . . 2 1 Fabricators . | . . . . . . . . . . Repair Stations . | . . . . . . . . . . Recycling Units . | . . . . . . . . . . Scanalyzers . | . . . . . . . . . . Garrison Access . | . . . . . . . . . . Data Cores Recovered . | . . . . . . . . . . Used . | . . . . . . . . . . Hacking Detections 9 | . 3 4 . . . . . 2 . Full Trace Events 3 | . 1 2 . . . . . . . Feedback Events 1 | . . 1 . . . . . . . Hackware Fried 1 | . . 1 . . . . . . . Feedback Blocked . | . . . . . . . . . . Robot Schematics Acquired . | . . . . . . . . . . Robots Built . | . . . . . . . . . . Authchips . | . . . . . . . . . . Time . | . . . . . . . . . . Total Robot Build Rating . | . . . . . . . . . . Part Schematics Acquired . | . . . . . . . . . . Parts Built . | . . . . . . . . . . Authchips . | . . . . . . . . . . Time . | . . . . . . . . . . Total Part Build Rating . | . . . . . . . . . . Parts Repaired . | . . . . . . . . . . Time . | . . . . . . . . . . Parts Recycled . | . . . . . . . . . . Recycled Matter . | . . . . . . . . . . Retrieved Matter . | . . . . . . . . . . Retrieved Components . | . . . . . . . . . . Parts Scanalyzed . | . . . . . . . . . . Part Schematics Acquired . | . . . . . . . . . . Parts Damaged . | . . . . . . . . . . Bothacking | -11 -10 -9 -8 -8 -8 -8 -6 -5 -4 ------------ Run | Yrd Mat Mat Mat Sto Rec Scr Fac Fac Fac Used RIF Installer . | . . . . . . . . . . Robots Hacked . | . . . . . . . . . . Non-combat . | . . . . . . . . . . Combat . | . . . . . . . . . . Robot Hacks Applied . | . . . . . . . . . . Relay Couplers Released . | . . . . . . . . . . Fabnet Peak Effective % . | . . . . . . . . . . Robots Rewired . | . . . . . . . . . . Allies Hacked . | . . . . . . . . . . Hacks Repelled . | . . . . . . . . . . Allies | -11 -10 -9 -8 -8 -8 -8 -6 -5 -4 -------- Run | Yrd Mat Mat Mat Sto Rec Scr Fac Fac Fac Total Allies . | . . . . . . . . . . Largest Group . | . . . . . . . . . . Highest-Rated Group . | . . . . . . . . . . Highest-Rated Ally . | . . . . . . . . . . Total Orders 1 | . . . . . . . . 1 . EXPLORE 1 | . . . . . . . . 1 . Ally Attacks . | . . . . . . . . . . Total Damage . | . . . . . . . . . . Kills . | . . . . . . . . . . Allies Corrupted . | . . . . . . . . . . Allies Melted . | . . . . . . . . . . Intel | -11 -10 -9 -8 -8 -8 -8 -6 -5 -4 ------- Run | Yrd Mat Mat Mat Sto Rec Scr Fac Fac Fac Robot Analysis Total . | . . . . . . . . . . Derelict Logs Recovered . | . . . . . . . . . . Drone Launches 3 | . . . . . . . . 3 . Drone Recoveries . | . . . . . . . . . . Exploration | -11 -10 -9 -8 -8 -8 -8 -6 -5 -4 ------------- Run | Yrd Mat Mat Mat Sto Rec Scr Fac Fac Fac Turns Passed 2187 | 9 59 73 7 70 58 1185 229 252 245 Spaces Moved 2594 | 18 112 128 13 136 86 1147 326 332 296 Core 2594 | 18 112 128 13 136 86 1147 326 332 296 Treads . | . . . . . . . . . . Legs . | . . . . . . . . . . Wheels . | . . . . . . . . . . Hover . | . . . . . . . . . . Flight . | . . . . . . . . . . Fastest Speed 50 | 50 50 50 50 50 50 50 50 50 50 Average Speed 72 | 50 50 50 50 50 50 96 58 52 50 Slowest Speed 200 | 50 50 50 50 50 50 200 100 100 100 Overloaded Moves . | . . . . . . . . . . Propulsion Burnouts . | . . . . . . . . . . Robots Hopped . | . . . . . . . . . . Cave-ins Triggered . | . . . . . . . . . . Exploration Rate (%) 23 | 4 32 25 4 29 16 85 14 11 15 Regions Visited 9 Branch Regions 3 Pre-discovered Areas 4 | . . . . . . 4 . . . Known Exits Taken 2 | . 1 . . . . . 1 . . Unknown Exits Taken 7 | 1 . 1 1 1 1 1 . 1 . Scrap Searched 4 | . . . . . . 4 . . . Spaces Dug 4 | . . . . . . . 3 . 1 Terrain Destroyed 22 | . . . . . . . 3 . 19 Melee 4 | . . . . . . . 3 . 1 Projectile 3 | . . . . . . . . . 3 AOE 15 | . . . . . . . . . 15 Terrain Rammed . | . . . . . . . . . . Walls Destroyed . | . . . . . . . . . . Machines Disabled . | . . . . . . . . . . Actions | -11 -10 -9 -8 -8 -8 -8 -6 -5 -4 --------- Run | Yrd Mat Mat Mat Sto Rec Scr Fac Fac Fac Total 2847 | 17 114 134 12 137 100 1218 347 403 365 Wait 167 | . . . . . 15 54 5 62 31 Move 2585 | 17 111 127 12 135 85 1146 325 331 296 Hop . | . . . . . . . . . . Pick Up 11 | . . 3 . . . 6 . 1 1 Fast Attach 18 | . . 4 . . . 6 1 3 4 Attach 12 | . . . . . . 3 3 2 4 Detach 9 | . . . . . . 2 3 . 4 Swap . | . . . . . . . . . . Drop 4 | . . . . . . 1 1 2 . Fire 12 | . . . . . . . . . 12 Melee 13 | . . . . . . . 9 2 2 Ram 16 | . 3 . . 2 . . . . 11 Kick . | . . . . . . . . . . Crush . | . . . . . . . . . . Escape Stasis . | . . . . . . . . . . Rewire . | . . . . . . . . . . Trap . | . . . . . . . . . . Miscellaneous . | . . . . . . . . . . Route ------- -11/Scrapyard -10/Materials (discovered 3 exits: *Mat x3) -9/Materials -8/Materials -8/Storage -8/Recycling -8/Scraptown -6/Factory (discovered 3 exits: *Fac / *Low x2) -5/Factory -4/Factory (discovered 4 exits: Res x4) History --------- Turn | Location | Event 3 | -11/Scrapyard | Discovered new exit (range 15) 10 | -11/Scrapyard | Entered Materials 24 | -10/Materials | Identified exit to Materials 69 | -10/Materials | Entered another Materials area 69 | -9/Materials | Evolved 2 slots: Utility x2 102 | -9/Materials | Hacking Suite fried by hacking feedback 140 | -9/Materials | Discovered new exit (range 5) 142 | -9/Materials | Entered another Materials area 142 | -8/Materials | Evolved 2 slots: Utility x2 142 | -8/Materials | Discovered new exit (range 7) 149 | -8/Materials | Entered Storage 193 | -8/Storage | Core integrity fell below 50% 215 | -8/Storage | Core integrity fell below 20% 218 | -8/Storage | Used back door to open Recycling access 218 | -8/Storage | Discovered new exit (range 4) 219 | -8/Storage | Entered Recycling 220 | -8/Recycling | Met a Zionite searching for Scraptown 252 | -8/Recycling | Scanned before Scraplab entrance 272 | -8/Recycling | Entered Scraplab 276 | -8/Recycling | Discovered new exit (range 3) 277 | -8/Recycling | Entered Scraptown 277 | -8/Scraptown | System corruption cleaned by C-Scrubber 303 | -8/Scraptown | Build established: Mutant 385 | -8/Scraptown | Visited Comm Corps 394 | -8/Scraptown | Visited IN-MT5's Study 648 | -8/Scraptown | Visited Shadow of the Wyrm 666 | -8/Scraptown | Visited UFD Registry 666 | -8/Scraptown | Registered with UFD as "Rustsourcer" 692 | -8/Scraptown | Visited The Evicted 726 | -8/Scraptown | Visited Science Testing Area 848 | -8/Scraptown | Visited Cartography Club 878 | -8/Scraptown | Found Surveybot 17 Chip 946 | -8/Scraptown | Learned location of Warlord (-4) 946 | -8/Scraptown | Learned location of Archives (-5) 946 | -8/Scraptown | Learned location of Testing (-3) 946 | -8/Scraptown | Learned 8 Research zone layouts 946 | -8/Scraptown | Learned 12 Research zone layouts 946 | -8/Scraptown | Learned 8 Lower Caves zone layouts 946 | -8/Scraptown | Learned 16 Upper Caves zone layouts 946 | -8/Scraptown | Learned 8 Proximity Caves zone layouts 946 | -8/Scraptown | Learned 16 Research zone layouts 946 | -8/Scraptown | Learned 16 Proximity Caves zone layouts 946 | -8/Scraptown | Learned 4 Hub_04(d) zone layouts 946 | -8/Scraptown | Learned location of 1 exit from Factory 946 | -8/Scraptown | Learned location of 1 exit from Lower Caves 946 | -8/Scraptown | Learned location of 3 exits from Proximity Caves 978 | -8/Scraptown | Found Deep Structural Scanner 1047 | -8/Scraptown | Visited Junk Repository 1088 | -8/Scraptown | Visited Analyses Database 1103 | -8/Scraptown | Visited Scrapoid Pod Storage 1127 | -8/Scraptown | Visited Research Penetration Think Tank 1158 | -8/Scraptown | Visited Chapter 10 1174 | -8/Scraptown | Visited Supply Room 1199 | -8/Scraptown | Visited Curators Association 1419 | -8/Scraptown | Discovered new exit (range 12) 1462 | -8/Scraptown | Entered Factory 1462 | -6/Factory | Evolved 4 slots: Utility x4 1463 | -6/Factory | Identified exit to Lower Caves 1464 | -6/Factory | Identified exit to Factory 1663 | -6/Factory | Core integrity fell below 50% 1691 | -6/Factory | Entered another Factory area 1691 | -5/Factory | Evolved 2 slots: Utility x2 1916 | -5/Factory | Discovered new exit (range 19) 1922 | -5/Factory | Build established: Hacker-Mutant 1943 | -5/Factory | Entered another Factory area 1943 | -4/Factory | Evolved 2 slots: Utility x2 1944 | -4/Factory | Identified exit to Research 2080 | -4/Factory | Core integrity fell below 50% 2111 | -4/Factory | Lost 10 parts (5u5w) 2118 | -4/Factory | Core integrity fell below 20% 2188 | -4/Factory | Destroyed by G-67 Veteran with Field Laser Last Messages --------------- Slammed into K-01 Serf. K-01 Serf latches onto Y-64 Sentinel. K-01 Serf pushes Y-64 Sentinel. K-01 Serf collects debris. Slammed into K-01 Serf. K-01 Serf pushes G-67 Veteran. Slammed into K-01 Serf. Slammed into L-61 Swordsman. L-61 Swordsman knocked back. Slammed into L-61 Swordsman. Slammed into S-27 Virus. Destabilizing: Core damaged (-57). Penetrated by Slug. M-28 Smith repairs R-10 Processor. K-01 Serf pushes Y-64 Sentinel. K-01 Serf cleans the Construction Platform. System Shield destroyed. K-01 Serf cleans the Power Conduit. T-07 Excavator destroyed. Acquired Imp. Signal Interpreter. Map ----- +----------------------------------------------------+ | ?????????????????????????????????????????????????? | | ?????????????????????????????????????????????????? | | ?????????????????????????????????????????????????? | | ?????????????????????????????????????????????????? | | ?????????????????????????????????????????????????? | | ?????????????????????????????????????????????????? | | ?????????????????????????????????????????????????? | | ?????????????????????????????????????????????????? | | ?????????????????????????????????????????????????? | | ?????????????????????????????????????????????????? | | ????????????????????????? ???????????????????????? | | ????????????????????????? ???????????????????????? | | ????????????????????????? ????????????? ???????? | | ????????????????????????? ????????????? ???????? | | ????????????????????????# ????????????? #??????? | | ????????????????????????# #??????????? #??????? | | ????????????????????????# #??????????? #??????? | | ??????????????????????### ##########? ######## | | ??????????????????????# ? | | ??????????????????????# | | ??????????????????????# """"""""" """ | | ??????????????????????+ R" | | ??????????????????????# !| """"""""" """ | | ??????????????????????# =%= | | ??????????????????????# !* """"""""" """"""""" | | ??????????????????????# @ k R | | ??????????????????????# | | ??????????????????????# | | ??????????????????????# ####"" ""#####+ | | ??????????????????????# #??#"F ""#?# | | ??????????????????????# ###### #??#"""""#?# = | | ??????????????????????# #????# #??#######?# | | ??????????????????????# #????# #??????????# | | ??????????????????????# #????# #??????????#* | | ??????????????????????# #????# #??????????# | | ??????????????????????# g#????? #??????????# | | ??????????????????????# gg #????? #??????????# " | | ??????????????????????# #?????+???????????# " | | ??????????????????????# #?????????????????# " | | ??????????????????????# #?????????????????# " | | ??????????????????????# #?????????????????# " | | ??????????????????????# #?????????????????# " | | ??????????????????????+ +?????????????????# " | | ??????????????????????? ??????????????????# " | | ??????????????????????????????????????######### " | | ??????????????????????????????????????# + | | ??????????????????????????????????????# # | | ??????????????????????????????????????# #### | | ??????????????????????????????????????# | | ??????????????????????????????????????# ########## | +----------------------------------------------------+ Best States ------------- Heat Dissipation 43 Energy Generation 14 Energy Capacity 140 Matter Stores 300 Matter Capacity 300 Sight Range 18 Robot Scan Range 16 Terrain Scan Range 20 Terrain Scan Density 1210 Additional Mass Support 6 Evasion (%) 50 Melee Accuracy 15 Offensive Hacking 20 Defensive Hacking 10 Item Schematics ----------------- None Robot Schematics ------------------ None Fabricated ------------ Nothing Alien Tech Used ----------------- None Achievements -------------- None Challenges ------------ None Game ------ Seed ReactiveCobblerCanceller Manual? 0 Play Time 00:29:04 Cumulative 252.9 hours Start 2024.08.26 @ 21:16:17 End 2024.08.26 @ 22:03:02 Sessions 1 Manual Loads 0 Difficulty Rogue Special Mode None Game No. 473 Rogue 471 Adventurer 2 Explorer 0 Win Type - Total 14 Types 11/0/1/2/0/0/0/0/0 Lore% 74 Gallery% 68 Achievement% 57 Wizard Run 0 Options --------- Layout 0 ASCII 0 Keyboard 1 Movement Numpad Keybinds 1 Fullscreen 2 Font 18/SmallcapsGlow Map View 76x50 Zoom Use 0% Tactical HUD 1 Map Filters NONE Filters NONE Steam 1 RUN: 05a456f6-82da-4e90-a943-497046eda977